[Event "37th Andorra Open 2019"]
[Site "Caldea"]
[Date "2019.07.26"]
[Round "1.3"]
[White "Peralta, Fernando"]
[Black "Lund, Frode Ryan"]
[Result "1-0"]
[ECO "D36"]
[WhiteElo "2562"]
[BlackElo "2052"]
[Annotator "ChessBase"]
[PlyCount "77"]
[EventDate "2018.07.21"]
[EventType "swiss"]
[EventCountry "AND"]
[SourceTitle "playchess.com"]
[Source "ChessBase"]
[SourceQuality "1"]
[TimeControl "40/5400+30:1800+30"]

1. d4 {[%emt 0:00:00]} d5 {[%emt 0:00:03]} 2. c4 {[%emt 0:00:00]} e6 {[%emt 0:00:47]} 3. Nc3 {[%emt 0:00:00]} Nf6 {[%emt 0:01:01]} 4. cxd5 {[%emt 0:00:23]} exd5 {[%emt 0:00:23]} 5. Bg5 {[%emt 0:00:09]} Be7 {[%emt 0:01:23]} 6. e3 {[%emt 0:00:14]} Nbd7 {[%emt 0:02:12]} 7. Bd3 {[%emt 0:00:20]} O-O {[%emt 0:03:36]} 8. Nge2 {[%emt 0:00:20]} Re8 {[%emt 0:01:43]} 9. O-O {[%emt 0:00:48]} c6 {[%emt 0:00:55]} 10. Qc2 {[%emt 0:00:52]} Nf8 {[%emt 0:01:59]} 11. f3 {[%emt 0:00:28]} Nh5 {[%emt 0:01:55]} 12. Bxe7 {[%emt 0:00:17]} Qxe7 {[%emt 0:00:25]} 13. e4 {[%emt 0:00:41]} Be6 {[%emt 0:13:50]} 14. e5 {[%emt 0:09:10]} g6 {[%emt 0:00:28]} 15. f4 {[%emt 0:08:25]} Ng7 {[%emt 0:07:41]} 16. Nd1 {[%emt 0:00:35]} Bg4 {[%emt 0:16:05]} 17. Ne3 {[%emt 0:02:04]} Bxe2 {[%emt 0:00:07]} 18. Bxe2 {[%emt 0:00:11]} f5 {[%emt 0:02:02]} 19. Qd2 {[%emt 0:07:33]} h5 {[%emt 0:02:19]} 20. b4 {[%emt 0:01:11]} a6 {[%emt 0:02:33]} 21. Bd3 {[%emt 0:03:11]} Nfe6 {[%emt 0:03:56]} 22. Bc2 {[%emt 0:00:14]} Qd8 {[%emt 0:02:12]} 23. a4 {[%emt 0:11:28]} Qb6 {[%emt 0:04:22]} 24. Rad1 {[%emt 0:00:24]} Rf8 {[%emt 0:01:22]} 25. g3 {[%emt 0:02:23]} Rf7 {[%emt 0:01:50]} 26. h3 {[%emt 0:01:25]} Raf8 {[%emt 0:00:37]} 27. Ng2 {[%emt 0:00:15]} Ne8 {[%emt 0:09:05]} 28. Nh4 {[%emt 0:01:43]} Rg7 {[%emt 0:01:42]} 29. Kh2 {[%emt 0:05:19]} N8c7 {[%emt 0:04:20]} 30. Rg1 {[%emt 0:05:40]} Kf7 {[%emt 0:03:05]} 31. Bxf5 {[%emt 0:02:02]} gxf5 {[%emt 0:00:26]} 32. Nxf5 {[%emt 0:00:06]} Rh7 {[%emt 0:02:03]} 33. Nd6+ {[%emt 0:01:24]} Kg8 {[%emt 0:01:00]} 34. f5 {[%emt 0:01:24]} Ng7 {[%emt 0:00:56]} 35. a5 {[%emt 0:06:14]} Qa7 {[%emt 0:00:15]} 36. g4 {[%emt 0:00:12]} hxg4 {[%emt 0:01:33]} 37. Rxg4 {[%emt 0:00:09]} Kh8 {[%emt 0:00:09]} 38. Rdg1 {[%emt 0:03:09]} Nb5 {[%emt 0:01:22]} 39. Rxg7 {[%emt 0:01:07]} 1-0

[Event "37th Andorra Open 2019"]
[Site "Caldea"]
[Date "2019.07.26"]
[Round "1.4"]
[White "Partac, Elena"]
[Black "Vavulin, Maxim"]
[Result "0-1"]
[ECO "B06"]
[WhiteElo "2046"]
[BlackElo "2561"]
[Annotator "ChessBase"]
[PlyCount "72"]
[EventDate "2018.07.21"]
[EventType "swiss"]
[EventCountry "AND"]
[SourceTitle "playchess.com"]
[Source "ChessBase"]
[SourceQuality "1"]
[TimeControl "40/5400+30:1800+30"]

1. e4 {[%emt 0:00:00]} g6 {[%emt 0:00:00]} 2. d4 {[%emt 0:00:00]} Bg7 {[%emt 0:00:00]} 3. Nc3 {[%emt 0:00:02]} a6 {[%emt 0:00:13]} 4. Be3 {[%emt 0:00:45]} b5 {[%emt 0:00:12]} 5. Bd3 {[%emt 0:00:09]} Bb7 {[%emt 0:00:23]} 6. Qd2 {[%emt 0:01:26]} d6 {[%emt 0:00:39]} 7. O-O-O {[%emt 0:07:55]} Nd7 {[%emt 0:02:12]} 8. Kb1 {[%emt 0:09:42]} Rc8 {[%emt 0:01:44]} 9. f4 {[%emt 0:15:00]} c5 {[%emt 0:06:35]} 10. dxc5 {[%emt 0:14:33]} Nxc5 {[%emt 0:00:29]} 11. Nf3 {[%emt 0:02:32]} Nxd3 {[%emt 0:46:52]} 12. cxd3 {[%emt 0:04:00]} Nf6 {[%emt 0:00:46]} 13. h3 {[%emt 0:08:33]} O-O {[%emt 0:06:36]} 14. Rc1 {[%emt 0:00:10]} Qd7 {[%emt 0:02:40]} 15. Ne2 {[%emt 0:05:42]} Bc6 {[%emt 0:05:51]} 16. Ned4 {[%emt 0:03:37]} Ba8 {[%emt 0:00:31]} 17. Nb3 {[%emt 0:03:47]} Qb7 {[%emt 0:02:26]} 18. Na5 {[%emt 0:06:11]} Qb8 {[%emt 0:00:16]} 19. Nd4 {[%emt 0:04:36]} Rxc1+ {[%emt 0:01:06]} 20. Rxc1 {[%emt 0:00:04]} Nd7 {[%emt 0:00:29]} 21. Ndc6 {[%emt 0:02:51]} Qe8 {[%emt 0:00:20]} 22. Na7 {[%emt 0:04:28]} f5 {[%emt 0:00:56]} 23. Qb4 {[%emt 0:02:46]} Nf6 {[%emt 0:02:28]} 24. N7c6 {[%emt 0:00:32]} Qf7 {[%emt 0:01:23]} 25. Bb6 {[%emt 0:01:06]} fxe4 {[%emt 0:03:20]} 26. dxe4 {[%emt 0:00:11]} Qe6 {[%emt 0:00:25]} 27. Qb3 {[%emt 0:02:10]} Qxb3 {[%emt 0:00:51]} 28. axb3 {[%emt 0:00:19]} Nxe4 {[%emt 0:03:10]} 29. Nxe7+ {[%emt 0:00:05]} Kh8 {[%emt 0:00:06]} 30. f5 {[%emt 0:01:15]} gxf5 {[%emt 0:00:31]} 31. Nac6 {[%emt 0:00:15]} f4 {[%emt 0:01:49]} 32. Nd4 {[%emt 0:00:11]} Nc5 {[%emt 0:01:07]} 33. Bxc5 {[%emt 0:00:58]} Be4+ {[%emt 0:03:26]} 34. Ka2 {[%emt 0:00:29]} dxc5 {[%emt 0:00:08]} 35. Ne6 {[%emt 0:00:20]} Re8 {[%emt 0:00:50]} 36. Rxc5 {[%emt 0:00:26]} Bf6 {[%emt 0:01:21]} 0-1

[Event "37th Andorra Open 2019"]
[Site "Caldea"]
[Date "2019.07.26"]
[Round "1.5"]
[White "Cuartas, Jaime Alexander"]
[Black "Ros Alonso, Joana"]
[Result "1-0"]
[ECO "C02"]
[WhiteElo "2542"]
[BlackElo "2045"]
[Annotator "ChessBase"]
[PlyCount "67"]
[EventDate "2018.07.21"]
[EventType "swiss"]
[EventCountry "AND"]
[SourceTitle "playchess.com"]
[Source "ChessBase"]
[SourceQuality "1"]
[TimeControl "40/5400+30:1800+30"]

1. e4 {[%emt 0:00:00]} e6 {[%emt 0:00:00]} 2. d4 {[%emt 0:00:00]} d5 {[%emt 0:00:00]} 3. e5 {[%emt 0:00:00]} c5 {[%emt 0:00:00]} 4. c3 {[%emt 0:00:00]} Qb6 {[%emt 0:00:00]} 5. Nf3 {[%emt 0:00:00]} Bd7 {[%emt 0:00:07]} 6. a3 {[%emt 0:00:00]} c4 {[%emt 0:00:07]} 7. Nbd2 {[%emt 0:00:05]} Nc6 {[%emt 0:00:11]} 8. h4 {[%emt 0:00:08]} Na5 {[%emt 0:00:13]} 9. g3 {[%emt 0:00:10]} h6 {[%emt 0:01:33]} 10. Bh3 {[%emt 0:00:29]} O-O-O {[%emt 0:00:47]} 11. h5 {[%emt 0:01:12]} Kb8 {[%emt 0:02:14]} 12. Nh4 {[%emt 0:00:31]} Ne7 {[%emt 0:01:29]} 13. f4 {[%emt 0:00:21]} Nf5 {[%emt 0:09:28]} 14. Nxf5 {[%emt 0:01:06]} exf5 {[%emt 0:00:08]} 15. Qc2 {[%emt 0:08:08]} g6 {[%emt 0:01:15]} 16. Rb1 {[%emt 0:01:11]} Nb3 {[%emt 0:03:54]} 17. Nxb3 {[%emt 0:00:45]} Ba4 {[%emt 0:01:01]} 18. Be3 {[%emt 0:01:10]} Qxb3 {[%emt 0:04:19]} 19. Qxb3 {[%emt 0:00:50]} Bxb3 {[%emt 0:00:08]} 20. Kd2 {[%emt 0:00:09]} Be7 {[%emt 0:04:24]} 21. Rbg1 {[%emt 0:00:35]} Ba4 {[%emt 0:17:11]} 22. hxg6 {[%emt 0:03:22]} fxg6 {[%emt 0:00:13]} 23. g4 {[%emt 0:00:05]} fxg4 {[%emt 0:07:14]} 24. Bxg4 {[%emt 0:00:04]} h5 {[%emt 0:04:09]} 25. Be6 {[%emt 0:02:34]} Be8 {[%emt 0:00:53]} 26. Rh2 {[%emt 0:02:03]} a5 {[%emt 0:01:53]} 27. Bf2 {[%emt 0:10:08]} Rf8 {[%emt 0:04:30]} 28. f5 {[%emt 0:02:34]} g5 {[%emt 0:07:37]} 29. f6 {[%emt 0:00:30]} Bxf6 {[%emt 0:00:06]} 30. exf6 {[%emt 0:00:06]} Rxf6 {[%emt 0:00:10]} 31. Bh3 {[%emt 0:01:49]} Rf3 {[%emt 0:08:24]} 32. Bg3+ {[%emt 0:02:14]} Ka7 {[%emt 0:00:28]} 33. Bc7 {[%emt 0:00:19]} Rd3+ {[%emt 0:00:32]} 34. Ke2 {[%emt 0:00:30]} 1-0

[Event "37th Andorra Open 2019"]
[Site "Caldea"]
[Date "2019.07.26"]
[Round "1.6"]
[White "Garcia Gracia, Victor Hugo"]
[Black "Kharitonov, Alexandr"]
[Result "0-1"]
[ECO "B11"]
[WhiteElo "2032"]
[BlackElo "2540"]
[Annotator "ChessBase"]
[PlyCount "72"]
[EventDate "2018.07.21"]
[EventType "swiss"]
[EventCountry "AND"]
[SourceTitle "playchess.com"]
[Source "ChessBase"]
[SourceQuality "1"]
[TimeControl "40/5400+30:1800+30"]

1. e4 {[%emt 0:00:00]} c6 {[%emt 0:00:00]} 2. Nc3 {[%emt 0:00:00]} d5 {[%emt 0:00:00]} 3. Nf3 {[%emt 0:00:00]} a6 {[%emt 0:01:51]} 4. d3 {[%emt 0:02:14]} Bg4 {[%emt 0:02:39]} 5. h3 {[%emt 0:01:33]} Bh5 {[%emt 0:00:05]} 6. g4 {[%emt 0:05:31]} Bg6 {[%emt 0:00:14]} 7. Bg2 {[%emt 0:02:20]} e6 {[%emt 0:01:55]} 8. Ne5 {[%emt 0:05:00]} Bd6 {[%emt 0:05:30]} 9. Bf4 {[%emt 0:02:29]} d4 {[%emt 0:04:25]} 10. Nxg6 {[%emt 0:02:35]} hxg6 {[%emt 0:00:15]} 11. Ne2 {[%emt 0:04:01]} Bxf4 {[%emt 0:02:42]} 12. Nxf4 {[%emt 0:00:06]} e5 {[%emt 0:01:32]} 13. Ne2 {[%emt 0:00:06]} c5 {[%emt 0:01:27]} 14. c3 {[%emt 0:02:54]} Nc6 {[%emt 0:00:13]} 15. O-O {[%emt 0:05:26]} g5 {[%emt 0:01:08]} 16. a3 {[%emt 0:02:30]} Nge7 {[%emt 0:00:34]} 17. b4 {[%emt 0:06:51]} cxb4 {[%emt 0:02:38]} 18. cxb4 {[%emt 0:09:48]} O-O {[%emt 0:02:15]} 19. Qd2 {[%emt 0:02:26]} Ng6 {[%emt 0:00:35]} 20. Rfc1 {[%emt 0:00:40]} Qe7 {[%emt 0:00:46]} 21. Rc4 {[%emt 0:03:52]} Rfc8 {[%emt 0:08:15]} 22. Rac1 {[%emt 0:00:49]} Na7 {[%emt 0:00:05]} 23. Ng3 {[%emt 0:07:51]} Nf4 {[%emt 0:00:32]} 24. Nf5 {[%emt 0:01:06]} Qd7 {[%emt 0:00:38]} 25. Kh2 {[%emt 0:07:25]} g6 {[%emt 0:00:41]} 26. Ng3 {[%emt 0:01:32]} Nb5 {[%emt 0:00:47]} 27. a4 {[%emt 0:04:51]} Nc3 {[%emt 0:00:50]} 28. a5 {[%emt 0:00:36]} Qb5 {[%emt 0:00:26]} 29. R1xc3 {[%emt 0:02:01]} dxc3 {[%emt 0:00:07]} 30. Qxc3 {[%emt 0:00:12]} Qe8 {[%emt 0:02:12]} 31. Nf1 {[%emt 0:01:19]} Rd8 {[%emt 0:02:49]} 32. Rc7 {[%emt 0:02:31]} Rxd3 {[%emt 0:02:21]} 33. Qc4 {[%emt 0:03:47]} Rd4 {[%emt 0:02:51]} 34. Qc5 {[%emt 0:00:31]} Ne6 {[%emt 0:00:22]} 35. Qxe5 {[%emt 0:00:14]} Qb8 {[%emt 0:00:22]} 36. Rc5 {[%emt 0:00:47]} Nxc5 {[%emt 0:00:15]} 0-1

[Event "37th Andorra Open 2019"]
[Site "Caldea"]
[Date "2019.07.26"]
[Round "1.7"]
[White "Rychagov, Andrey"]
[Black "Arnijas Fabregas, Marc"]
[Result "1-0"]
[ECO "E62"]
[WhiteElo "2537"]
[BlackElo "2028"]
[Annotator "ChessBase"]
[PlyCount "105"]
[EventDate "2018.07.21"]
[EventType "swiss"]
[EventCountry "AND"]
[SourceTitle "playchess.com"]
[Source "ChessBase"]
[SourceQuality "1"]
[TimeControl "40/5400+30:1800+30"]

1. d4 {[%emt 0:02:13]} d6 {[%emt 0:02:06]} 2. Nf3 {[%emt 0:00:00]} Nf6 {[%emt 0:02:31]} 3. c4 {[%emt 0:00:00]} g6 {[%emt 0:01:18]} 4. g3 {[%emt 0:00:01]} Bg7 {[%emt 0:01:08]} 5. Bg2 {[%emt 0:00:09]} c6 {[%emt 0:00:41]} 6. O-O {[%emt 0:00:17]} O-O {[%emt 0:00:30]} 7. Nc3 {[%emt 0:01:47]} Qa5 {[%emt 0:03:12]} 8. e4 {[%emt 0:03:36]} Qh5 {[%emt 0:06:17]} 9. Ng5 {[%emt 0:03:55]} Qxd1 {[%emt 0:02:02]} 10. Rxd1 {[%emt 0:00:17]} h6 {[%emt 0:14:56]} 11. Nf3 {[%emt 0:00:26]} Bg4 {[%emt 0:00:06]} 12. Be3 {[%emt 0:03:18]} Nbd7 {[%emt 0:05:51]} 13. h3 {[%emt 0:00:52]} Bxf3 {[%emt 0:00:21]} 14. Bxf3 {[%emt 0:00:05]} Rac8 {[%emt 0:03:48]} 15. b4 {[%emt 0:05:01]} c5 {[%emt 0:16:42]} 16. bxc5 {[%emt 0:03:27]} dxc5 {[%emt 0:00:58]} 17. d5 {[%emt 0:10:49]} Ne8 {[%emt 0:02:37]} 18. Rac1 {[%emt 0:00:52]} Nd6 {[%emt 0:00:42]} 19. Nb5 {[%emt 0:14:47]} Kh7 {[%emt 0:08:55]} 20. Bg4 {[%emt 0:05:47]} f5 {[%emt 0:01:40]} 21. exf5 {[%emt 0:01:00]} gxf5 {[%emt 0:01:25]} 22. Nxd6 {[%emt 0:00:32]} exd6 {[%emt 0:00:55]} 23. Bh5 {[%emt 0:00:04]} Nf6 {[%emt 0:01:44]} 24. Be2 {[%emt 0:00:08]} Nd7 {[%emt 0:05:46]} 25. a4 {[%emt 0:00:48]} b6 {[%emt 0:01:03]} 26. a5 {[%emt 0:01:27]} Be5 {[%emt 0:11:11]} 27. Bd3 {[%emt 0:02:23]} Kg7 {[%emt 0:00:23]} 28. axb6 {[%emt 0:01:02]} axb6 {[%emt 0:00:11]} 29. f4 {[%emt 0:01:36]} Bb2 {[%emt 0:01:30]} 30. Rc2 {[%emt 0:02:11]} Ba3 {[%emt 0:00:05]} 31. Ra1 {[%emt 0:00:38]} Bb4 {[%emt 0:00:05]} 32. Ra7 {[%emt 0:00:05]} Rcd8 {[%emt 0:00:13]} 33. Bc1 {[%emt 0:00:36]} Rf7 {[%emt 0:01:48]} 34. Re2 {[%emt 0:00:17]} Bc3 {[%emt 0:00:57]} 35. Kg2 {[%emt 0:01:05]} Kf8 {[%emt 0:00:53]} 36. Re6 {[%emt 0:00:31]} Ne5 {[%emt 0:00:56]} 37. Rxf7+ {[%emt 0:01:41]} Nxf7 {[%emt 0:00:05]} 38. Bxf5 {[%emt 0:00:03]} Ra8 {[%emt 0:00:34]} 39. Bg6 {[%emt 0:01:12]} Ra2+ {[%emt 0:00:43]} 40. Kf3 {[%emt 0:00:00]} Bd4 {[%emt 0:00:00]} 41. Kg4 {[%emt 0:01:31]} Ra4 {[%emt 0:03:16]} 42. Bd3 {[%emt 0:03:15]} Bc3 {[%emt 0:02:35]} 43. Kf3 {[%emt 0:02:03]} Bd4 {[%emt 0:03:13]} 44. g4 {[%emt 0:01:35]} Ra1 {[%emt 0:01:20]} 45. Be3 {[%emt 0:00:14]} Ra3 {[%emt 0:00:07]} 46. Bxd4 {[%emt 0:00:45]} Rxd3+ {[%emt 0:00:59]} 47. Be3 {[%emt 0:00:03]} Rb3 {[%emt 0:00:50]} 48. h4 {[%emt 0:00:28]} b5 {[%emt 0:01:52]} 49. cxb5 {[%emt 0:00:04]} Rxb5 {[%emt 0:00:07]} 50. g5 {[%emt 0:00:45]} hxg5 {[%emt 0:00:29]} 51. hxg5 {[%emt 0:00:03]} c4 {[%emt 0:04:49]} 52. g6 {[%emt 0:02:02]} Rxd5 {[%emt 0:00:40]} 53. Rf6 {[%emt 0:00:21]} 1-0

[Event "37th Andorra Open 2019"]
[Site "Caldea"]
[Date "2019.07.28"]
[Round "2.2"]
[White "Lagarde, Maxime"]
[Black "Morros Faura, Ricard"]
[Result "1-0"]
[ECO "A05"]
[WhiteElo "2597"]
[BlackElo "2258"]
[Annotator "ChessBase"]
[PlyCount "74"]
[EventDate "2018.07.21"]
[EventType "swiss"]
[EventCountry "AND"]
[SourceTitle "playchess.com"]
[Source "ChessBase"]
[SourceQuality "1"]
[TimeControl "40/5400+30:1800+30"]

1. Nf3 {[%emt 0:00:00]} Nf6 {[%emt 0:06:55]} 2. c4 {[%emt 0:00:00]} e6 {[%emt 0:00:25]} 3. b3 {[%emt 0:00:20]} b6 {[%emt 0:01:41]} 4. g3 {[%emt 0:00:41]} Bb7 {[%emt 0:00:57]} 5. Bg2 {[%emt 0:00:04]} Be7 {[%emt 0:00:36]} 6. O-O {[%emt 0:00:06]} O-O {[%emt 0:00:21]} 7. Bb2 {[%emt 0:00:03]} d6 {[%emt 0:00:21]} 8. Re1 {[%emt 0:02:37]} Nbd7 {[%emt 0:02:48]} 9. Nc3 {[%emt 0:00:20]} Nc5 {[%emt 0:05:24]} 10. Qc2 {[%emt 0:06:39]} e5 {[%emt 0:20:54]} 11. d4 {[%emt 0:06:29]} exd4 {[%emt 0:00:40]} 12. Nxd4 {[%emt 0:00:06]} Bxg2 {[%emt 0:01:50]} 13. Kxg2 {[%emt 0:00:03]} Re8 {[%emt 0:01:43]} 14. e4 {[%emt 0:02:53]} Bf8 {[%emt 0:07:22]} 15. f3 {[%emt 0:00:10]} Qd7 {[%emt 0:11:25]} 16. Nd5 {[%emt 0:05:50]} Nxd5 {[%emt 0:06:16]} 17. cxd5 {[%emt 0:00:04]} a5 {[%emt 0:01:23]} 18. Nc6 {[%emt 0:02:48]} f5 {[%emt 0:04:10]} 19. exf5 {[%emt 0:00:20]} Rxe1 {[%emt 0:06:04]} 20. Rxe1 {[%emt 0:00:04]} Re8 {[%emt 0:00:49]} 21. Re6 {[%emt 0:00:48]} Qf7 {[%emt 0:03:18]} 22. g4 {[%emt 0:00:29]} Be7 {[%emt 0:03:06]} 23. f4 {[%emt 0:06:42]} Bf6 {[%emt 0:05:39]} 24. Ba3 {[%emt 0:01:24]} Nxe6 {[%emt 0:05:00]} 25. dxe6 {[%emt 0:00:04]} Rxe6 {[%emt 0:00:37]} 26. fxe6 {[%emt 0:00:13]} Qxe6 {[%emt 0:00:02]} 27. h3 {[%emt 0:00:52]} Qd5+ {[%emt 0:01:30]} 28. Kg3 {[%emt 0:01:19]} Qh1 {[%emt 0:00:43]} 29. g5 {[%emt 0:00:15]} Qg1+ {[%emt 0:01:09]} 30. Qg2 {[%emt 0:00:53]} Qe3+ {[%emt 0:00:48]} 31. Qf3 {[%emt 0:00:54]} Qg1+ {[%emt 0:00:42]} 32. Kh4 {[%emt 0:00:31]} Qe1+ {[%emt 0:00:16]} 33. Kg4 {[%emt 0:00:25]} Qg1+ {[%emt 0:01:00]} 34. Kf5 {[%emt 0:01:44]} Qb1+ {[%emt 0:00:33]} 35. Ke6 {[%emt 0:00:09]} Qe1+ {[%emt 0:00:32]} 36. Kd7 {[%emt 0:00:17]} Bc3 {[%emt 0:00:29]} 37. Qd5+ {[%emt 0:00:13]} Kf8 {[%emt 0:00:40]} 1-0

[Event "37th Andorra Open 2019"]
[Site "Caldea"]
[Date "2019.07.28"]
[Round "2.3"]
[White "Palacios Herrero, Pablo"]
[Black "Peralta, Fernando"]
[Result "0-1"]
[ECO "C02"]
[WhiteElo "2248"]
[BlackElo "2562"]
[Annotator "ChessBase"]
[PlyCount "34"]
[EventDate "2018.07.21"]
[EventType "swiss"]
[EventCountry "AND"]
[SourceTitle "playchess.com"]
[Source "ChessBase"]
[SourceQuality "1"]
[TimeControl "40/5400+30:1800+30"]

1. e4 {[%emt 0:00:20]} e6 {[%emt 0:00:00]} 2. d4 {[%emt 0:00:38]} d5 {[%emt 0:00:00]} 3. e5 {[%emt 0:00:25]} c5 {[%emt 0:00:00]} 4. c3 {[%emt 0:00:05]} Nc6 {[%emt 0:00:00]} 5. Nf3 {[%emt 0:00:06]} Bd7 {[%emt 0:00:11]} 6. Be2 {[%emt 0:00:14]} Nge7 {[%emt 0:00:27]} 7. O-O {[%emt 0:00:54]} Nf5 {[%emt 0:00:21]} 8. dxc5 {[%emt 0:06:00]} Bxc5 {[%emt 0:00:20]} 9. c4 {[%emt 0:00:21]} dxc4 {[%emt 0:04:32]} 10. Bxc4 {[%emt 0:01:57]} Ncd4 {[%emt 0:08:03]} 11. Nxd4 {[%emt 0:08:43]} Bxd4 {[%emt 0:01:20]} 12. Qe2 {[%emt 0:05:08]} O-O {[%emt 0:12:53]} 13. Nd2 {[%emt 0:02:04]} Bc6 {[%emt 0:01:20]} 14. Nb3 {[%emt 0:03:50]} Bb6 {[%emt 0:01:29]} 15. Bd2 {[%emt 0:06:45]} Qh4 {[%emt 0:08:43]} 16. Rac1 {[%emt 0:12:39]} Ng3 {[%emt 0:05:01]} 17. Qe1 {[%emt 0:07:48]} Qg4 {[%emt 0:03:53]} 0-1

[Event "37th Andorra Open 2019"]
[Site "Caldea"]
[Date "2019.07.28"]
[Round "2.4"]
[White "Vavulin, Maxim"]
[Black "Fernandez De Bobadilla, Gabriel"]
[Result "1-0"]
[ECO "B90"]
[WhiteElo "2561"]
[BlackElo "2231"]
[Annotator "ChessBase"]
[PlyCount "65"]
[EventDate "2018.07.21"]
[EventType "swiss"]
[EventCountry "AND"]
[SourceTitle "playchess.com"]
[Source "ChessBase"]
[SourceQuality "1"]
[TimeControl "40/5400+30:1800+30"]

1. e4 {[%emt 0:00:00]} c5 {[%emt 0:08:59]} 2. Nc3 {[%emt 0:00:40]} a6 {[%emt 0:00:11]} 3. Nf3 {[%emt 0:00:58]} d6 {[%emt 0:00:11]} 4. d4 {[%emt 0:00:48]} cxd4 {[%emt 0:00:08]} 5. Nxd4 {[%emt 0:00:05]} Nf6 {[%emt 0:00:11]} 6. Be3 {[%emt 0:01:05]} e5 {[%emt 0:00:15]} 7. Nb3 {[%emt 0:00:11]} Be6 {[%emt 0:00:15]} 8. h3 {[%emt 0:01:10]} Nbd7 {[%emt 0:11:50]} 9. g4 {[%emt 0:00:37]} h6 {[%emt 0:01:28]} 10. Qd2 {[%emt 0:00:36]} Be7 {[%emt 0:01:26]} 11. f4 {[%emt 0:01:13]} exf4 {[%emt 0:00:20]} 12. Bxf4 {[%emt 0:00:07]} Ne5 {[%emt 0:01:00]} 13. O-O-O {[%emt 0:00:54]} b5 {[%emt 0:04:10]} 14. Qg2 {[%emt 0:02:41]} Nfd7 {[%emt 0:03:33]} 15. Kb1 {[%emt 0:00:42]} Rc8 {[%emt 0:05:39]} 16. Nd5 {[%emt 0:00:40]} Bg5 {[%emt 0:02:02]} 17. Bg3 {[%emt 0:01:00]} Bh4 {[%emt 0:05:51]} 18. Nd4 {[%emt 0:01:08]} Bxg3 {[%emt 0:02:31]} 19. Qxg3 {[%emt 0:02:28]} g6 {[%emt 0:05:51]} 20. Rh2 {[%emt 0:03:22]} Bxd5 {[%emt 0:02:27]} 21. exd5 {[%emt 0:00:08]} h5 {[%emt 0:00:13]} 22. gxh5 {[%emt 0:01:32]} Rxh5 {[%emt 0:00:15]} 23. h4 {[%emt 0:00:12]} Nf6 {[%emt 0:13:45]} 24. Re2 {[%emt 0:18:12]} Kf8 {[%emt 0:02:46]} 25. Bg2 {[%emt 0:00:53]} Nfg4 {[%emt 0:03:22]} 26. Nc6 {[%emt 0:01:31]} Qxh4 {[%emt 0:11:43]} 27. Qa3 {[%emt 0:00:22]} Qf6 {[%emt 0:05:37]} 28. Qxa6 {[%emt 0:00:45]} Re8 {[%emt 0:00:48]} 29. Qxb5 {[%emt 0:01:33]} Nxc6 {[%emt 0:02:12]} 30. Rxe8+ {[%emt 0:00:36]} Kxe8 {[%emt 0:00:01]} 31. Qxc6+ {[%emt 0:13:50]} Kf8 {[%emt 0:00:01]} 32. Qc8+ {[%emt 0:00:15]} Kg7 {[%emt 0:00:31]} 33. Qxg4 {[%emt 0:00:11]} 1-0

[Event "37th Andorra Open 2019"]
[Site "Caldea"]
[Date "2019.07.28"]
[Round "2.7"]
[White "Sanchez Dengra, Jose Maria"]
[Black "Rychagov, Andrey"]
[Result "1-0"]
[ECO "B85"]
[WhiteElo "2216"]
[BlackElo "2537"]
[Annotator "ChessBase"]
[PlyCount "45"]
[EventDate "2018.07.21"]
[EventType "swiss"]
[EventCountry "AND"]
[SourceTitle "playchess.com"]
[Source "ChessBase"]
[SourceQuality "1"]
[TimeControl "40/5400+30:1800+30"]

1. e4 {[%emt 0:00:00]} c5 {[%emt 0:00:00]} 2. Nf3 {[%emt 0:00:00]} e6 {[%emt 0:00:00]} 3. d4 {[%emt 0:00:07]} cxd4 {[%emt 0:00:00]} 4. Nxd4 {[%emt 0:00:06]} a6 {[%emt 0:00:05]} 5. Nc3 {[%emt 0:00:49]} Qc7 {[%emt 0:00:47]} 6. Be2 {[%emt 0:01:13]} Nf6 {[%emt 0:01:21]} 7. O-O {[%emt 0:02:17]} Be7 {[%emt 0:05:49]} 8. Be3 {[%emt 0:01:50]} d6 {[%emt 0:00:49]} 9. a4 {[%emt 0:02:00]} O-O {[%emt 0:02:17]} 10. f4 {[%emt 0:02:41]} Nc6 {[%emt 0:06:11]} 11. Kh1 {[%emt 0:09:10]} Bd7 {[%emt 0:08:27]} 12. Qe1 {[%emt 0:04:31]} Nxd4 {[%emt 0:20:47]} 13. Bxd4 {[%emt 0:00:07]} b5 {[%emt 0:04:30]} 14. Qg3 {[%emt 0:13:14]} b4 {[%emt 0:05:43]} 15. e5 {[%emt 0:01:36]} dxe5 {[%emt 0:00:18]} 16. Bxe5 {[%emt 0:04:09]} Qb7 {[%emt 0:04:32]} 17. Bf3 {[%emt 0:06:20]} Bc6 {[%emt 0:00:08]} 18. Ne2 {[%emt 0:00:56]} Bxf3 {[%emt 0:04:05]} 19. Rxf3 {[%emt 0:02:09]} g6 {[%emt 0:02:25]} 20. Nd4 {[%emt 0:09:26]} Rfd8 {[%emt 0:04:09]} 21. f5 {[%emt 0:07:23]} Ne4 {[%emt 0:02:31]} 22. Qh3 {[%emt 0:01:45]} exf5 {[%emt 0:05:44]} 23. Qxh7+ {[%emt 0:00:22]} 1-0